Cogmind - Beta 17 @@@ ROGUE MODE // 2026.06.29 @ 23:47:40 Player: Winged Result: Destroyed by as-89936 with Assembled Blade Performance ------------- Evolutions (0) 0 Regions Visited (2) 400 Robots Destroyed (19) 95 Value Destroyed (501) 501 Prototype IDs (4) 80 Alien Tech Used (0) 0 Bonus (103) 103 TOTAL SCORE: 1179 Bonus ------- Follower Combat Kills 103 Cogmind --------- Core Integrity 0/250 Matter 280/300 Energy 123/250 System Corruption 0% Temperature Cool (0) Movement Rolling (115) Ox1 Location -10/Mines Parts ------- > --- POWER (1) -------- Ion Engine > --- PROPULSION (2) --- Compact Wheel > --- UTILITY (2) ------ Large Storage Unit Sensor Array > --- WEAPON (2) ------- Heavy Assault Rifle Hammer > --- INVENTORY (15) --- Light Ion Engine Heat Sink Small Storage Unit Medium Storage Unit Large Battery (200) Medium Matter Pod (100) ECM Suite Heavy Assault Rifle Peak State ------------ > --- POWER ------------ Light Nuclear Core > --- PROPULSION ------- Wheel Wheel > --- UTILITY ---------- Small Storage Unit Seismic Detector > --- WEAPON ----------- Heavy Assault Rifle Heavy Assault Rifle > --- INVENTORY -------- Ion Engine Light Ion Engine Wheel Wheel Compact Wheel Sensor Array Heavy Assault Rifle Heavy Assault Rifle [Rating: 12] Favorites ----------- Power Light Nuclear Core Engine Ion Engine Power Core Light Nuclear Core Propulsion Wheel Wheel Wheel Utility Sensor Array Device Sensor Array Storage Small Storage Unit Weapon Heavy Assault Rifle Ballistic Gun Heavy Assault Rifle Impact Weapon Hammer Build | -11 -10 -10 ------- Run | Yrd Mat Min Slots Evolved . | . . . Power . | . . . Propulsion . | . . . Utility . | . . . Weapon . | . . . Parts Attached 17 | 7 7 3 Power 3 | 1 1 1 Engine 2 | 1 . 1 Core 1 | . 1 . Reactor . | . . . Propulsion 5 | 2 1 2 Treads . | . . . Leg . | . . . Wheel 5 | 2 1 2 Hover . | . . . Flight . | . . . Utility 4 | 2 2 . Device 2 | 1 1 . Storage 2 | 1 1 . Processor . | . . . Hackware . | . . . Protection . | . . . Artifact . | . . . Weapon 5 | 2 3 . Energy Gun . | . . . Energy Cannon . | . . . Ballistic Gun 4 | 2 2 . Ballistic Cannon . | . . . Launcher . | . . . Special Weapon . | . . . Impact Weapon 1 | . 1 . Slashing Weapon . | . . . Piercing Weapon . | . . . Special Melee Weapon . | . . . Unidentified Prototypes . | . . . Parts Lost 5 | . . 5 Power 1 | . . 1 Propulsion 4 | . . 4 Utility . | . . . Weapon . | . . . Highest Loss Streak 4 | . . 4 To Critical Strikes . | . . . Average Backups 8 | 2 8 10 Power 1 | . 2 1 Propulsion 2 | . 2 2 Utility 3 | . 1 5 Weapon 1 | . 1 1 Tool/Special . | . . . Unused Backups 11 | . 4 7 Power 1 | . . 1 Propulsion . | . . . Utility 6 | . . 6 Weapon 4 | . 4 . Tool/Special . | . . . Average Slot Usage (%) 99 | . 99 99 Engine 2 | . 3 . Core 11 | . 9 13 Wheel 27 | . 28 27 Device 14 | . 14 14 Storage 14 | . 14 14 Ballistic Gun 19 | . 21 17 Impact Weapon 8 | . 7 10 Peak Build Rating 12 | 7 12 12 Average Rating 10 | 4 10 11 On Entrance 6 | . 7 11 Avg Prop Armor Cover (%) . | . . . Naked Turns . | . . . Heaviest Build 32 | 15 31 32 Greatest Support 26 | 20 20 26 Greatest Overweight (x) 3 | . 1 3 Average Overweight (x) . | . . 1 Largest Inventory Capacity 15 | 8 15 15 Average Capacity 11 | 7 9 15 Most Carried 11 | 6 11 11 Average Carried 8 | 2 8 10 Final Capacity 15 | 8 15 15 Final Carried 11 | 6 11 8 Class Distribution -------------------- 100% | Mutant Dominant Class ---------------- Mutant | -10/Materials Mutant | -10/Mines Resources | -11 -10 -10 ----------- Run | Yrd Mat Min Matter Collected 621 | 306 150 165 Remotely . | . . . Salvage Created 814 | 113 503 198 Parts 34 | 5 24 5 Haulers Intercepted 1 | . 1 . Recyclers Shooed . | . . . Parts Field Recycled . | . . . Retrieved Matter . | . . . Parts Self-Destructed . | . . . Prevented . | . . . Parts Restored . | . . . Kills | -11 -10 -10 ------- Run | Yrd Mat Min Combat Hostiles Destroyed 15 | . 10 5 Melee 6 | . 4 2 Guns 4 | . 4 . Classes Destroyed 8 | 2 5 1 Worker 1 | . 1 . Tunneler 1 | 1 . . Hauler 1 | . 1 . Recycler 2 | 1 . 1 Operator 1 | . 1 . Watcher 1 | . 1 . Grunt 12 | . 10 2 Assembled 3 | . . 3 Best Kill Streak 5 | 2 5 3 Combat Bots Only 4 | . 4 3 Max Kills in Single Turn 1 | 1 1 1 Gunslinging . | . . . Exploded . | . . . Melee 1 | . 1 1 Uniques/NPCs Destroyed . | . . . Combat | -11 -10 -10 -------- Run | Yrd Mat Min Hostile Shots Fired 82 | . 33 49 Missed 19 | . 12 7 Hits 63 | . 21 42 Melee 2 | . . 2 Projectile 61 | . 21 40 Part Disruptions 1 | . . 1 Damage Taken 910 | . 262 648 Core 269 | . 73 196 Absorbed by Shields . | . . . Regen/Repaired (Parts) 58 | . 58 . Core Remaining (%) 100 | 100 . . Volleys Fired 21 | 6 15 . Largest 2 | 2 2 . Hottest 46 | 40 46 . Shots Fired 42 | 12 30 . Gun 42 | 12 30 . Cannon . | . . . Launcher . | . . . Special . | . . . Kinetic 42 | 12 30 . Thermal . | . . . Explosive . | . . . Electromagnetic . | . . . Robot Hit Streak 8 | 6 8 . Robot Miss Streak 3 | 1 3 . Penetration Max . | . . . Secondary Targets 1 | . 1 . Max Gunslinging Chain 1 | . 1 . Shots Hit Robots 51 | 9 31 11 Core Hits 17 | 3 12 2 Critical Kills 1 | . 1 . Critical Parts Destroyed 4 | . 3 1 Critical Strikes 5 | . 4 1 Smash 5 | . 4 1 Melee Attacks 39 | . 21 18 Impact 39 | . 21 18 Slashing . | . . . Piercing . | . . . Sneak Attacks 3 | . 2 1 Combat Hostiles . | . . . Follow-up Attacks . | . . . Damage Inflicted 1150 | 110 715 325 Guns 341 | 110 231 . Cannons . | . . . Explosions . | . . . Melee 809 | . 484 325 Ramming . | . . . Kinetic 341 | 110 231 . Thermal . | . . . Explosive . | . . . Electromagnetic . | . . . Impact 809 | . 484 325 Slashing . | . . . Piercing . | . . . Highest Corruption . | . . . Average Corruption . | . . . Corruption Purged . | . . . Corruption Blocked . | . . . Overload Shots . | . . . Overflow Damage 175 | . 91 84 Projectiles . | . . . Explosions . | . . . Melee 175 | . 91 84 Knockbacks 1 | . 1 . Impact 1 | . 1 . Kinetic . | . . . Secondary . | . . . Self-Inflicted Damage . | . . . Shots . | . . . Rammed . | . . . Targets Rammed . | . . . Kicked . | . . . Crushed . | . . . Highest Temperature 16 | . 16 4 Average Temperature 5 | . 5 3 Received Heat Transfer 268 | . 147 121 Siege Activations . | . . . Martial Activations . | . . . Shielding Activations . | . . . Robots Disrupted . | . . . Combat Hostiles . | . . . Robots Corrupted 8 | . 4 4 Combat Hostiles 5 | . 2 3 Parts Fried 5 | . 5 . Impact Corruptions 13 | . 6 7 Robots Melted . | . . . Combat Hostiles . | . . . Parts Melted . | . . . Heat Transferred . | . . . Parts Sabotaged . | . . . Parts Stolen . | . . . Parts Stripped . | . . . Power Chain Reactions . | . . . Alert | -11 -10 -10 ------- Run | Yrd Mat Min Maximum Alert Level . | . . . Low Security (%) 100 | 100 100 100 Level 1 . | . . . Level 2 . | . . . Level 3 . | . . . Level 4 . | . . . Level 5 . | . . . High Security . | . . . Max Security . | . . . Peak Influence 149 | 10 149 75 Initial 31 | . . 31 Average 49 | 1 69 26 Influence Increases 454 | 10 315 129 Destroy 0b10 Robot/C 300 | . 200 100 Destroy 0b10 Robot/NC 35 | 10 20 5 Destroy Leader 64 | . 44 20 Allied During Kill 4 | . . 4 Successful Hack 36 | . 36 . Lose Combat Pursuer 15 | . 15 . Influence Decreases 454 | 10 232 212 Entered New Map 52 | . . 52 Time Decay 352 | 10 232 110 Lost Part 10 | . . 10 Lost Ally 40 | . . 40 Squads Dispatched 2 | . 2 . Investigation . | . . . Extermination . | . . . Reinforcement 2 | . 2 . Assault . | . . . Garrison . | . . . Intercept . | . . . Searches Triggered . | . . . Construction Impeded . | . . . Haulers Reinforced . | . . . Active Scanning Responses . | . . . Cargo Convoy Interrupts . | . . . Stealth | -11 -10 -10 --------- Run | Yrd Mat Min Distress Signals 4 | . 4 . Communications Jammed . | . . . Distress Signals . | . . . Times Spotted 39 | . 20 19 Peak Tracking Total 6 | . 3 6 Tactical Retreats 6 | . 1 5 Traps | -11 -10 -10 ------- Run | Yrd Mat Min Traps Triggered . | . . . Indirectly . | . . . Trap Hack Attempts . | . . . Triggered . | . . . Disarmed . | . . . Reprogrammed . | . . . Reused . | . . . Traps Extracted . | . . . Installed . | . . . Triggered . | . . . Machines | -11 -10 -10 ---------- Run | Yrd Mat Min Machines Disabled . | . . . Max in Single Turn . | . . . Machines Repaired . | . . . Machines Dismantled . | . . . Machines Sabotaged . | . . . Overloaded Fab Kills . | . . . Hacking | -11 -10 -10 --------- Run | Yrd Mat Min Machines Accessed 8 | . 7 1 Terminals 5 | . 5 . Fabricators . | . . . Repair Stations 1 | . 1 . Recycling Units 1 | . 1 . Scanalyzers . | . . . Garrison Access . | . . . Total Hacks 30 | . 29 1 Successful 22 | . 21 1 Failed 8 | . 8 . Catastrophic 1 | . 1 . Database Lockouts . | . . . Manual 17 | . 17 . Terminals 20 | . 20 . Fabricators . | . . . Repair Stations 4 | . 4 . Recycling Units 5 | . 5 . Scanalyzers . | . . . Garrison Access . | . . . Terminal Hacks 7 | . 6 1 Prototype ID Bank 2 | . 2 . Open Door 1 | . . 1 Branch Access Points 1 | . 1 . Maintenance Status 1 | . 1 . Hauler Manifests 1 | . 1 . Registered Components 1 | . 1 . Fabricator Hacks . | . . . Repair Station Hacks 4 | . 4 . Scan Component 2 | . 2 . Repair 2 | . 2 . Recycling Unit Hacks 1 | . 1 . Report Inventory 1 | . 1 . Scanalyzer . | . . . Garrison Access Hacks . | . . . Unauthorized Hacks 10 | . 10 . Terminals 7 | . 7 . Track 1 | . 1 . Botnet 5 | . 5 . Operators 1 | . 1 . Fabricators . | . . . Repair Stations . | . . . Recycling Units 3 | . 3 . Monitor 1 | . 1 . Reject 1 | . 1 . Mask 1 | . 1 . Scanalyzers . | . . . Garrison Access . | . . . Data Cores Recovered . | . . . Used . | . . . Hacking Detections 7 | . 7 . Full Trace Events 1 | . 1 . Feedback Events . | . . . Feedback Blocked . | . . . Robot Schematics Acquired . | . . . Robots Built . | . . . Authchips . | . . . Time . | . . . Total Robot Build Rating . | . . . Part Schematics Acquired . | . . . Parts Built . | . . . Authchips . | . . . Time . | . . . Total Part Build Rating . | . . . Part Studies Acquired . | . . . Parts Repaired 2 | . 2 . Time 64 | . 64 . Parts Recycled . | . . . Recycled Matter . | . . . Retrieved Matter . | . . . Retrieved Components . | . . . Parts Scanalyzed . | . . . Part Schematics Acquired . | . . . Parts Damaged . | . . . Bothacking | -11 -10 -10 ------------ Run | Yrd Mat Min Used RIF Installer . | . . . Robots Hacked . | . . . Non-combat . | . . . Combat . | . . . Robot Hacks Applied . | . . . Relay Couplers Released . | . . . Fabnet Peak Effective % . | . . . Robots Rewired . | . . . Allies Hacked . | . . . Hacks Repelled . | . . . Allies | -11 -10 -10 -------- Run | Yrd Mat Min Total Allies 2 | . . 2 Largest Group 2 | . . 2 Highest-Rated Group 59 | . . 59 Highest-Rated Ally 31 | . . 31 Total Orders . | . . . Ally Attacks 11 | . . 11 Total Damage 169 | . . 169 Kills 3 | . . 3 Allies Corrupted . | . . . Allies Melted . | . . . Intel | -11 -10 -10 ------- Run | Yrd Mat Min Active Infowar (turns) 1013 | 5 630 378 Sensors 807 | . 429 378 Seismic 206 | 5 201 . Robot Analysis Total . | . . . Derelict Logs Recovered 2 | . . 2 Drone Launches . | . . . Drone Recoveries . | . . . Exploration | -11 -10 -10 ------------- Run | Yrd Mat Min Turns Passed 1079 | 71 630 378 Spaces Moved 857 | 45 481 331 Core 2 | 2 . . Treads . | . . . Legs . | . . . Wheels 855 | 43 481 331 Hover . | . . . Flight . | . . . Fastest Speed 50 | 50 80 95 Average Speed 86 | 78 81 95 Slowest Speed 125 | 80 95 125 Overloaded Moves . | . . . Propulsion Burnouts . | . . . Robots Hopped . | . . . Potential Cave-ins . | . . . Cave-ins Triggered . | . . . Exploration Rate (%) 43 | 4 73 52 Regions Visited 2 Branch Regions 1 Pre-discovered Areas . | . . . Known Exits Taken 1 | . 1 . Unknown Exits Taken 1 | 1 . . Scrap Searched 2 | . . 2 Spaces Dug . | . . . Terrain Destroyed . | . . . Melee . | . . . Projectile . | . . . AOE . | . . . Terrain Rammed . | . . . Walls Destroyed . | . . . Machines Disabled . | . . . Actions | -11 -10 -10 --------- Run | Yrd Mat Min Total 1080 | 65 654 361 Wait 113 | . 110 3 Move 855 | 44 480 331 Hop . | . . . Pick Up 20 | 8 11 1 Fast Attach 6 | 5 1 . Attach 6 | 2 . 4 Detach . | . . . Swap 11 | . 7 4 Drop 9 | . 9 . Fire 21 | 6 15 . Melee 39 | . 21 18 Ram . | . . . Kick . | . . . Crush . | . . . Escape Stasis . | . . . Rewire . | . . . Trap . | . . . Miscellaneous . | . . . Route ------- -11/Scrapyard -10/Materials (discovered 4 exits: [*Mat x3] / *Min) -10/Mines (discovered 1 exit: [*Mat]) History --------- Turn | Location | Event 4 | -11/Scrapyard | Discovered new exit (range 16) 72 | -11/Scrapyard | Entered Materials 95 | -10/Materials | Discovered new exit (range 8) 293 | -10/Materials | Discovered new exit (range 15) 313 | -10/Materials | Build established: Mutant 501 | -10/Materials | Discovered new exit (range 8) 510 | -10/Materials | Identified exit to Mines 662 | -10/Materials | Repaired Lgt. Nuclear Core 689 | -10/Materials | Repaired Wheel 702 | -10/Materials | Entered Mines 772 | -10/Mines | Discovered new exit (range 9) 791 | -10/Mines | Assembled infested the area 796 | -10/Mines | Assisted by a Guerilla fighting off Assembled 803 | -10/Mines | Found DCF Scrap (14 items) 827 | -10/Mines | Found the Drone Emporium 1049 | -10/Mines | Core integrity fell below 50% 1065 | -10/Mines | Core integrity fell below 20% 1080 | -10/Mines | Destroyed by as-89936 with Assembled Blade Last Messages --------------- 00882_ U-05 Engineer destroyed. 00897_ K-01 Serf collects debris. 01002_ Acquired 8 matter. 01003_ Acquired 2 matter. 01019_ Destroyed Asb. F-torch. 01019_ Destroyed Asb. Hover Unit. 01019_ as-80065 system corrupted by crushing effect. 01020_ as-80065 system terminally corrupted. 01021_ Acquired 10 matter. 01036_ R-06 Scavenger destroyed. 01038_ Destroyed Asb. Hover Unit. 01038_ as-77530 system corrupted by crushing effect. 01039_ as-77530 system terminally corrupted. 01051_ Wheel destroyed. 01058_ as-29586 destroyed. 01067_ Wheel destroyed. 01071_ Lgt. Nuclear Core destroyed. 01071_ Wheel destroyed. Map ----- +----------------------------------------------------+ | """ ???????????????????????????# #??????????????? | | """????????????????????????????# #??#???????????? | | ???????????????????????#[## #???????????? | | #??????????????????######%! #???????????? | | #?????????????????????????# ##!####???????????? | | ## #??????????????????????# ## #??????????????? | | #??????????????????????# ## #??????????????? | | #???######???????????????## #??????????????? | | #??##""""##??????????????# ###??????????????? | | ##??#" ! "#??????????????# #????????????????? | | ????#" "#??????????????## ##????????????????? | | ?????# ####?????????????## ##?????????????????? | | ????### ## ##?????????????# #??????????????????? | | #???# X ##????????????#*#??????????????????? | | #???# ##############[####*####??????????? | | #??# ! %]= ?*===!]%?!!= #?????????? | | #??#### ?####*################# #?????????? | | ##?????###### ### #???????????????????????????? | | #???????##### ## #???????????????????????????? | | ????????# ## #???????????????????????????? | | ????????#%#### ### #???????????????????????????? | | ????????# #??#####?#%#???????????????????????????? | | ????????# #????????# #???????????????????????????? | | ????????# #????????# #???????????????????????????? | | ????????# #????????# #######?????????????????????? | | ?########%#????????#a% @a#?????????????????????? | | ?# !! %**#????????#######a#?????????????????????? | | ?# ########??????????????# #?????????????????????? | | ?# #?????????????????????# #?????????????????????? | | ## #?????????????????????# #?????????????????????? | | ## #########?????????????# #?????????????????????? | | #?????????????# #?????????????????????? | | #????????????? #?????????????????????? | | ########## #???????????? ?????????????????????? | | ?????????# #??????? ?????????????????????? | | ?####??### #???## = ?#?????????????????????? | | ## ##?# ## =%* ??????????????????????? | | # ### !%! |! ??????????????????????? | | # = =| ### #??????????????????????? | | # % ##??????????#???????????????????????? | | ####???????????????????????????????????? | | ###??????????????????????????????????????? | | ## ###????????????????????????????????????????? | | ?## ##??????????????????????????????????????????? | | ??####???????????????????????????????????????????? | | ?????????????????????????????????????????????????? | | ?????????????????????????????????????????????????? | | ?????????????????????????????????????????????????? | | ?????????????????????????????????????????????????? | | | +----------------------------------------------------+ Best States ------------- Heat Dissipation 25 Energy Generation 14 Energy Capacity 250 Matter Stores 300 Matter Capacity 300 Sight Range 16 Robot Scan Range 14 Terrain Scan Density 10 Evasion (%) 44 Item Schematics ----------------- None Robot Schematics ------------------ None Fabricated ------------ Nothing Repaired ---------- Lgt. Nuclear Core | 40% | -10/Materials Wheel | 30% | -10/Materials Studied --------- None Alien Tech Used ----------------- None Achievements -------------- None Challenges ------------ None Game ------ Seed BorgReflectiveDrive Manual? 0 Play Time 00:18:40 Cumulative 85.0 hours Start 2026.06.29 @ 14:39:58 End 2026.06.29 @ 23:47:40 Sessions 2 Manual Loads 0 Difficulty Rogue Special Mode None Game No. 79 Rogue 79 Adventurer 0 Explorer 0 Win Type - Total 1 Types 1/0/0/0/0/0/0/0/0/0 Lore% 46 Gallery% 43 Achievement% 34 Wizard Run 0 Options --------- Layout 1 ASCII 0 Keyboard 1 Movement Vi Keybinds 0 Fullscreen 2 Font 24/Smallcaps Map View 50x35 Zoom Use 0% Tactical HUD 1 Map Filters NONE Filters NONE Steam 1 RUN: 9e85f0e7-dd97-47b4-9136-2f0fb7dcf6a9